[Event "Titled Tuesday Blitz May 9 Late 2023"]
[White "De Souza, Cristiano Gomes"]
[Black "TheKnightOfBosnia"]
[WhiteFideId "2151758"]
[WhiteElo "2068"]
[BlackElo "2462"]
[Result "0-1"]
[Round "08"]
[TimeControl "180+2"]
[Date "2023.05.09"]
[WhiteClock "0:00:00"]
[BlackClock "0:01:16"]

1. d4 {[%clk 0:03:00]}  Nf6 {[%clk 0:03:00]} 2. c4 {[%clk 0:02:57]}  e6 {[%clk 0:03:00]} 3. Nf3 {[%clk 0:02:56]}  Bb4+ {[%clk 0:03:01]} 4. Bd2 {[%clk 0:02:55]}  a5 {[%clk 0:03:01]} 5. a3 {[%clk 0:02:55]}  Be7 {[%clk 0:03:01]} 6. Nc3 {[%clk 0:02:55]}  d5 {[%clk 0:02:59]} 7. e3 {[%clk 0:02:53]}  O-O {[%clk 0:02:59]} 8. Rc1 {[%clk 0:02:52]}  Nc6 {[%clk 0:02:57]} 9. Be2 {[%clk 0:02:51]}  dxc4 {[%clk 0:02:47]} 10. Bxc4 {[%clk 0:02:48]}  Bd6 {[%clk 0:02:48]} 11. O-O {[%clk 0:02:46]}  e5 {[%clk 0:02:48]} 12. dxe5 {[%clk 0:02:39]}  Nxe5 {[%clk 0:02:49]} 13. Nxe5 {[%clk 0:02:39]}  Bxe5 {[%clk 0:02:50]} 14. Qe2 {[%clk 0:02:37]}  c6 {[%clk 0:02:50]} 15. Rfd1 {[%clk 0:02:35]}  Qe7 {[%clk 0:02:50]} 16. h3 {[%clk 0:02:25]}  Be6 {[%clk 0:02:47]} 17. Bxe6 {[%clk 0:02:25]}  Qxe6 {[%clk 0:02:48]} 18. Na4 {[%clk 0:02:21]}  Qb3 {[%clk 0:02:41]} 19. Nc5 {[%clk 0:02:13]}  Qxb2 {[%clk 0:02:41]} 20. Rb1 {[%clk 0:02:08]}  Qxa3 {[%clk 0:02:40]} 21. Nxb7 {[%clk 0:02:05]}  Rab8 {[%clk 0:02:39]} 22. Nxa5 {[%clk 0:01:57]}  Rxb1 {[%clk 0:02:33]} 23. Rxb1 {[%clk 0:01:56]}  Qa2 {[%clk 0:02:32]} 24. Qe1 {[%clk 0:01:47]}  Ne4 {[%clk 0:02:26]} 25. Bb4 {[%clk 0:01:19]}  c5 {[%clk 0:02:24]} 26. Nc6 {[%clk 0:01:10]}  Bf6 {[%clk 0:02:06]} 27. f3 {[%clk 0:00:55]}  cxb4 {[%clk 0:02:02]} 28. fxe4 {[%clk 0:00:52]}  Bc3 {[%clk 0:02:01]} 29. Nxb4 {[%clk 0:00:39]}  Qc4 {[%clk 0:01:50]} 30. Qc1 {[%clk 0:00:31]}  Qxe4 {[%clk 0:01:38]} 31. Na2 {[%clk 0:00:18]}  Be5 {[%clk 0:01:35]} 32. Rb4 {[%clk 0:00:17]}  Qd5 {[%clk 0:01:31]} 33. Nc3 {[%clk 0:00:15]}  Qc5 {[%clk 0:01:31]} 34. Na2 {[%clk 0:00:13]}  Qa5 {[%clk 0:01:24]} 35. Qc2 {[%clk 0:00:11]}  g6 {[%clk 0:01:22]} 36. Qb3 {[%clk 0:00:10]}  Ra8 {[%clk 0:01:19]} 37. Rb5 {[%clk 0:00:02]}  Qxa2 {[%clk 0:01:19]} 38. Qxa2 {[%clk 0:00:02]}  Rxa2 {[%clk 0:01:20]} 39. Rxe5 {[%clk 0:00:02]}  Re2 {[%clk 0:01:17]} 40. Kh2 {[%clk 0:00:03]}  Kg7 {[%clk 0:01:16]} 41. Re8 {[%clk 0:00:03]}  h5 {[%clk 0:01:16]} 42. Kg3 {[%clk 0:00:02]}  Kf6 {[%clk 0:01:16]} 43. Kf3 {[%clk 0:00:03]}  Re1 {[%clk 0:01:17]} 44. Re4 {[%clk 0:00:03]}  g5 {[%clk 0:01:17]} 45. g4 {[%clk 0:00:00]}  h4 {[%clk 0:01:16]} 0-1


[Site "https://www.chess.com"]

[Event "Titled Tuesday Blitz May 9 Late 2023"]
[White "Martic, Ivan"]
[Black "Smiechu"]
[WhiteFideId "929301"]
[WhiteElo "2360"]
[BlackElo "2316"]
[Result "1-0"]
[Round "08"]
[TimeControl "180+2"]
[Date "2023.05.09"]
[WhiteClock "0:01:24"]
[BlackClock "0:02:18"]

1. e4 {[%clk 0:02:50]}  c5 {[%clk 0:02:58]} 2. Nf3 {[%clk 0:02:50]}  g6 {[%clk 0:02:58]} 3. d4 {[%clk 0:02:50]}  cxd4 {[%clk 0:02:59]} 4. Nxd4 {[%clk 0:02:50]}  Nc6 {[%clk 0:03:00]} 5. Nc3 {[%clk 0:02:49]}  Bg7 {[%clk 0:03:00]} 6. Be3 {[%clk 0:02:48]}  Nf6 {[%clk 0:02:55]} 7. Bc4 {[%clk 0:02:46]}  O-O {[%clk 0:02:54]} 8. Bb3 {[%clk 0:02:46]}  d6 {[%clk 0:02:55]} 9. f3 {[%clk 0:02:45]}  Bd7 {[%clk 0:02:55]} 10. Qd2 {[%clk 0:02:45]}  Rc8 {[%clk 0:02:55]} 11. O-O-O {[%clk 0:02:45]}  Nxd4 {[%clk 0:02:55]} 12. Bxd4 {[%clk 0:02:45]}  b5 {[%clk 0:02:56]} 13. Nd5 {[%clk 0:02:43]}  Nxd5 {[%clk 0:02:56]} 14. Bxg7 {[%clk 0:02:37]}  Kxg7 {[%clk 0:02:55]} 15. exd5 {[%clk 0:02:38]}  a5 {[%clk 0:02:53]} 16. a3 {[%clk 0:02:38]}  Kg8 {[%clk 0:02:51]} 17. h4 {[%clk 0:02:17]}  b4 {[%clk 0:02:47]} 18. axb4 {[%clk 0:02:11]}  axb4 {[%clk 0:02:47]} 19. g4 {[%clk 0:02:03]}  Qa5 {[%clk 0:02:45]} 20. Qd4 {[%clk 0:01:59]}  Ba4 {[%clk 0:02:42]} 21. Kd2 {[%clk 0:01:46]}  Bxb3 {[%clk 0:02:36]} 22. cxb3 {[%clk 0:01:47]}  Rc5 {[%clk 0:02:36]} 23. Ke3 {[%clk 0:01:43]}  e5 {[%clk 0:02:32]} 24. Qd3 {[%clk 0:01:35]}  f5 {[%clk 0:02:31]} 25. gxf5 {[%clk 0:01:34]}  Rxf5 {[%clk 0:02:31]} 26. Rhg1 {[%clk 0:01:33]}  Qa7 {[%clk 0:02:27]} 27. Ke2 {[%clk 0:01:30]}  Qc7 {[%clk 0:02:26]} 28. Qxf5 {[%clk 0:01:24]}  Rc2+ {[%clk 0:02:18]} 29. Rd2 {[%clk 0:01:24]} 1-0


[Site "https://www.chess.com"]

[Event "Titled Tuesday Blitz May 9 Late 2023"]
[White "Abdi, Farzad"]
[Black "Gatterer, Florian"]
[WhiteFideId "2076829"]
[BlackFideId "811688"]
[WhiteElo "2259"]
[BlackElo "2221"]
[Result "1-0"]
[Round "08"]
[TimeControl "180+2"]
[Date "2023.05.09"]
[WhiteClock "0:00:07"]
[BlackClock "0:00:00"]

1. d4 {[%clk 0:03:00]}  e6 {[%clk 0:03:00]} 2. c4 {[%clk 0:02:59]}  Nf6 {[%clk 0:02:59]} 3. Nc3 {[%clk 0:02:58]}  Bb4 {[%clk 0:02:59]} 4. e3 {[%clk 0:02:57]}  O-O {[%clk 0:02:58]} 5. Bd3 {[%clk 0:02:58]}  d5 {[%clk 0:02:58]} 6. Nf3 {[%clk 0:02:57]}  dxc4 {[%clk 0:02:57]} 7. Bxc4 {[%clk 0:02:56]}  c5 {[%clk 0:02:57]} 8. Qe2 {[%clk 0:02:55]}  cxd4 {[%clk 0:02:53]} 9. exd4 {[%clk 0:02:55]}  Nc6 {[%clk 0:02:48]} 10. a3 {[%clk 0:02:54]}  Be7 {[%clk 0:02:40]} 11. Bg5 {[%clk 0:02:49]}  Nxd4 {[%clk 0:02:35]} 12. Nxd4 {[%clk 0:02:47]}  Qxd4 {[%clk 0:02:36]} 13. Rd1 {[%clk 0:02:40]}  Qc5 {[%clk 0:02:35]} 14. Be3 {[%clk 0:02:23]}  Qh5 {[%clk 0:02:33]} 15. Qxh5 {[%clk 0:02:20]}  Nxh5 {[%clk 0:02:32]} 16. O-O {[%clk 0:02:04]}  Nf6 {[%clk 0:02:23]} 17. Nb5 {[%clk 0:01:38]}  Nd5 {[%clk 0:02:11]} 18. Bxd5 {[%clk 0:01:31]}  exd5 {[%clk 0:02:09]} 19. Nc7 {[%clk 0:01:26]}  Bg4 {[%clk 0:02:00]} 20. f3 {[%clk 0:01:19]}  Be6 {[%clk 0:01:59]} 21. Nxa8 {[%clk 0:01:17]}  Rxa8 {[%clk 0:02:00]} 22. Rd4 {[%clk 0:01:14]}  Bc5 {[%clk 0:01:54]} 23. Rd3 {[%clk 0:01:08]}  Be7 {[%clk 0:01:51]} 24. Bd4 {[%clk 0:01:03]}  a6 {[%clk 0:01:47]} 25. Rc3 {[%clk 0:00:59]}  Bd6 {[%clk 0:01:46]} 26. Rfc1 {[%clk 0:00:54]}  h6 {[%clk 0:01:46]} 27. g3 {[%clk 0:00:53]}  Kh7 {[%clk 0:01:42]} 28. Kf2 {[%clk 0:00:53]}  Kg6 {[%clk 0:01:41]} 29. h4 {[%clk 0:00:53]}  h5 {[%clk 0:01:41]} 30. f4 {[%clk 0:00:47]}  f6 {[%clk 0:01:38]} 31. Bc5 {[%clk 0:00:43]}  Bxc5+ {[%clk 0:01:24]} 32. Rxc5 {[%clk 0:00:42]}  Rd8 {[%clk 0:01:24]} 33. Ke3 {[%clk 0:00:32]}  d4+ {[%clk 0:01:23]} 34. Kd2 {[%clk 0:00:30]}  Rd6 {[%clk 0:01:08]} 35. b4 {[%clk 0:00:29]}  Bg4 {[%clk 0:01:02]} 36. Re1 {[%clk 0:00:29]}  b6 {[%clk 0:00:59]} 37. Rc7 {[%clk 0:00:25]}  a5 {[%clk 0:00:59]} 38. Ree7 {[%clk 0:00:25]}  axb4 {[%clk 0:00:58]} 39. axb4 {[%clk 0:00:24]}  Rd5 {[%clk 0:00:55]} 40. Rxg7+ {[%clk 0:00:23]}  Kf5 {[%clk 0:00:55]} 41. Rc1 {[%clk 0:00:15]}  Rb5 {[%clk 0:00:51]} 42. Rb1 {[%clk 0:00:16]}  Ke4 {[%clk 0:00:50]} 43. Rb2 {[%clk 0:00:16]}  f5 {[%clk 0:00:48]} 44. Rd7 {[%clk 0:00:15]}  Kf3 {[%clk 0:00:46]} 45. Rb3+ {[%clk 0:00:15]}  Kg2 {[%clk 0:00:42]} 46. Rxd4 {[%clk 0:00:14]}  Kh3 {[%clk 0:00:40]} 47. Rdd3 {[%clk 0:00:12]}  Kg2 {[%clk 0:00:34]} 48. Ke1 {[%clk 0:00:11]}  Kg1 {[%clk 0:00:34]} 49. Kd2 {[%clk 0:00:09]}  Kf2 {[%clk 0:00:33]} 50. Rd4 {[%clk 0:00:08]}  Kg2 {[%clk 0:00:32]} 51. Kc1 {[%clk 0:00:07]}  Kh3 {[%clk 0:00:30]} 52. Kb2 {[%clk 0:00:07]}  Kg2 {[%clk 0:00:29]} 53. Ka3 {[%clk 0:00:07]}  Kh3 {[%clk 0:00:00]} 54. Rd2 {[%clk 0:00:07]} 1-0


[Site "https://www.chess.com"]

[Event "Titled Tuesday Blitz May 9 Late 2023"]
[White "Hartikainen, Jarmo"]
[Black "Al-Saffar, Araz Basim Mohammed S"]
[WhiteFideId "503134"]
[BlackFideId "4801040"]
[WhiteElo "2098"]
[BlackElo "2304"]
[Result "0-1"]
[Round "08"]
[TimeControl "180+2"]
[Date "2023.05.09"]
[WhiteClock "0:00:17"]
[BlackClock "0:01:15"]

1. e4 {[%clk 0:03:00]}  e5 {[%clk 0:02:57]} 2. Nf3 {[%clk 0:03:00]}  Nc6 {[%clk 0:02:56]} 3. Bc4 {[%clk 0:02:59]}  Nf6 {[%clk 0:02:56]} 4. Ng5 {[%clk 0:02:59]}  d5 {[%clk 0:02:55]} 5. exd5 {[%clk 0:02:58]}  Na5 {[%clk 0:02:56]} 6. Bb5+ {[%clk 0:02:59]}  c6 {[%clk 0:02:57]} 7. dxc6 {[%clk 0:02:59]}  bxc6 {[%clk 0:02:57]} 8. Bd3 {[%clk 0:02:58]}  Nd5 {[%clk 0:02:55]} 9. Nf3 {[%clk 0:02:52]}  Nf4 {[%clk 0:02:26]} 10. O-O {[%clk 0:02:49]}  Nxd3 {[%clk 0:02:22]} 11. cxd3 {[%clk 0:02:48]}  Bd6 {[%clk 0:02:12]} 12. Qa4 {[%clk 0:02:21]}  O-O {[%clk 0:02:09]} 13. Re1 {[%clk 0:02:10]}  Re8 {[%clk 0:01:58]} 14. Nc3 {[%clk 0:02:05]}  c5 {[%clk 0:01:48]} 15. Nb5 {[%clk 0:01:36]}  Bd7 {[%clk 0:01:38]} 16. Qxa5 {[%clk 0:01:02]}  Qxa5 {[%clk 0:01:34]} 17. Nxd6 {[%clk 0:01:03]}  Re6 {[%clk 0:01:32]} 18. Nc4 {[%clk 0:01:03]}  Qc7 {[%clk 0:01:31]} 19. Rxe5 {[%clk 0:01:01]}  Rxe5 {[%clk 0:01:29]} 20. Ncxe5 {[%clk 0:00:59]}  Re8 {[%clk 0:01:29]} 21. Nxd7 {[%clk 0:00:51]}  Qxd7 {[%clk 0:01:27]} 22. b3 {[%clk 0:00:45]}  Qd4 {[%clk 0:01:25]} 23. Rb1 {[%clk 0:00:43]}  Qxd3 {[%clk 0:01:24]} 24. Rb2 {[%clk 0:00:43]}  g5 {[%clk 0:01:17]} 25. h3 {[%clk 0:00:42]}  h5 {[%clk 0:01:15]} 26. a3 {[%clk 0:00:33]}  g4 {[%clk 0:01:14]} 27. hxg4 {[%clk 0:00:17]}  hxg4 {[%clk 0:01:15]} 0-1


[Site "https://www.chess.com"]

[Event "Titled Tuesday Blitz May 9 Late 2023"]
[White "Zampronha, Wladimir Camilo"]
[Black "Mirzoev, Azer"]
[WhiteFideId "2103087"]
[BlackFideId "13400304"]
[WhiteElo "2176"]
[BlackElo "2525"]
[Result "0-1"]
[Round "08"]
[TimeControl "180+2"]
[Date "2023.05.09"]
[WhiteClock "0:00:28"]
[BlackClock "0:00:29"]

1. e4 {[%clk 0:03:00]}  c5 {[%clk 0:03:00]} 2. Nf3 {[%clk 0:03:01]}  e6 {[%clk 0:03:00]} 3. d4 {[%clk 0:03:02]}  cxd4 {[%clk 0:03:00]} 4. Nxd4 {[%clk 0:03:02]}  a6 {[%clk 0:03:01]} 5. Bd3 {[%clk 0:03:00]}  Nc6 {[%clk 0:03:00]} 6. Be3 {[%clk 0:02:55]}  Nf6 {[%clk 0:02:52]} 7. O-O {[%clk 0:02:54]}  Qc7 {[%clk 0:02:50]} 8. Nc3 {[%clk 0:02:54]}  b5 {[%clk 0:02:50]} 9. Nxc6 {[%clk 0:02:48]}  dxc6 {[%clk 0:02:50]} 10. f4 {[%clk 0:02:46]}  e5 {[%clk 0:02:49]} 11. fxe5 {[%clk 0:02:28]}  Ng4 {[%clk 0:02:43]} 12. Qf3 {[%clk 0:02:17]}  Nxe3 {[%clk 0:02:31]} 13. Qxe3 {[%clk 0:02:16]}  Qxe5 {[%clk 0:02:31]} 14. Qf3 {[%clk 0:02:07]}  Be6 {[%clk 0:02:30]} 15. Ne2 {[%clk 0:02:03]}  Bc5+ {[%clk 0:02:29]} 16. Kh1 {[%clk 0:02:03]}  O-O {[%clk 0:02:29]} 17. Ng3 {[%clk 0:02:01]}  Qxb2 {[%clk 0:02:20]} 18. Nf5 {[%clk 0:02:00]}  Qe5 {[%clk 0:02:19]} 19. Qg4 {[%clk 0:01:58]}  Rad8 {[%clk 0:02:06]} 20. a4 {[%clk 0:01:52]}  g6 {[%clk 0:01:55]} 21. axb5 {[%clk 0:01:51]}  axb5 {[%clk 0:01:54]} 22. Nh6+ {[%clk 0:01:39]}  Kg7 {[%clk 0:01:51]} 23. Qh4 {[%clk 0:01:39]}  Rd7 {[%clk 0:01:30]} 24. Ra6 {[%clk 0:01:37]}  Be7 {[%clk 0:01:24]} 25. Ng4 {[%clk 0:01:20]}  Bxg4 {[%clk 0:01:15]} 26. Qxg4 {[%clk 0:01:18]}  Bd6 {[%clk 0:01:13]} 27. g3 {[%clk 0:01:16]}  Rc7 {[%clk 0:01:13]} 28. Rfa1 {[%clk 0:01:06]}  h5 {[%clk 0:01:11]} 29. Qf3 {[%clk 0:01:03]}  Re8 {[%clk 0:01:04]} 30. Kg2 {[%clk 0:01:01]}  Re6 {[%clk 0:01:03]} 31. Ra7 {[%clk 0:00:51]}  Rf6 {[%clk 0:01:01]} 32. Qe2 {[%clk 0:00:52]}  Rxa7 {[%clk 0:00:57]} 33. Rxa7 {[%clk 0:00:50]}  Bc5 {[%clk 0:00:57]} 34. Ra6 {[%clk 0:00:45]}  Rf2+ {[%clk 0:00:53]} 35. Qxf2 {[%clk 0:00:46]}  Bxf2 {[%clk 0:00:53]} 36. Kxf2 {[%clk 0:00:47]}  Qc5+ {[%clk 0:00:47]} 37. Kg2 {[%clk 0:00:46]}  b4 {[%clk 0:00:37]} 38. Ra8 {[%clk 0:00:43]}  Qd4 {[%clk 0:00:34]} 39. Rb8 {[%clk 0:00:42]}  c5 {[%clk 0:00:33]} 40. Rc8 {[%clk 0:00:42]}  b3 {[%clk 0:00:31]} 41. cxb3 {[%clk 0:00:39]}  Qxd3 {[%clk 0:00:30]} 42. Rxc5 {[%clk 0:00:38]}  Qxe4+ {[%clk 0:00:31]} 43. Kh3 {[%clk 0:00:37]}  Qg4+ {[%clk 0:00:29]} 44. Kg2 {[%clk 0:00:37]}  Qe2+ {[%clk 0:00:30]} 45. Kh3 {[%clk 0:00:37]}  Qf1+ {[%clk 0:00:29]} 46. Kh4 {[%clk 0:00:28]}  Qf2 {[%clk 0:00:29]} 0-1


[Site "https://www.chess.com"]

[Event "Titled Tuesday Blitz May 9 Late 2023"]
[White "Romero Ruscalleda, Josep"]
[Black "sebastianmarinp"]
[WhiteFideId "2231859"]
[WhiteElo "2183"]
[BlackElo "2409"]
[Result "1-0"]
[Round "08"]
[TimeControl "180+2"]
[Date "2023.05.09"]
[WhiteClock "0:02:17"]
[BlackClock "0:00:21"]

1. e4 {[%clk 0:03:00]}  e5 {[%clk 0:02:57]} 2. Nf3 {[%clk 0:03:00]}  Nc6 {[%clk 0:02:56]} 3. Bc4 {[%clk 0:03:00]}  Nf6 {[%clk 0:02:55]} 4. d4 {[%clk 0:03:00]}  exd4 {[%clk 0:02:51]} 5. e5 {[%clk 0:03:00]}  d5 {[%clk 0:02:51]} 6. Bb5 {[%clk 0:03:00]}  Ne4 {[%clk 0:02:51]} 7. Nxd4 {[%clk 0:03:00]}  Bd7 {[%clk 0:02:52]} 8. Bxc6 {[%clk 0:03:00]}  bxc6 {[%clk 0:02:53]} 9. O-O {[%clk 0:03:00]}  Be7 {[%clk 0:02:50]} 10. f3 {[%clk 0:03:00]}  Nc5 {[%clk 0:02:50]} 11. f4 {[%clk 0:02:59]}  O-O {[%clk 0:02:45]} 12. f5 {[%clk 0:02:59]}  Bg5 {[%clk 0:02:45]} 13. f6 {[%clk 0:02:47]}  gxf6 {[%clk 0:02:36]} 14. Bxg5 {[%clk 0:02:33]}  fxg5 {[%clk 0:02:37]} 15. Qh5 {[%clk 0:02:32]}  Ne4 {[%clk 0:02:30]} 16. Nc3 {[%clk 0:02:32]}  Nxc3 {[%clk 0:01:42]} 17. bxc3 {[%clk 0:02:31]}  Qe7 {[%clk 0:01:04]} 18. Rae1 {[%clk 0:02:28]}  Kh8 {[%clk 0:00:59]} 19. Rf6 {[%clk 0:02:25]}  c5 {[%clk 0:00:48]} 20. Nf3 {[%clk 0:02:22]}  Rg8 {[%clk 0:00:21]} 21. Rxf7 {[%clk 0:02:17]} 1-0


[Site "https://www.chess.com"]

[Event "Titled Tuesday Blitz May 9 Late 2023"]
[White "Kujawski, Adam"]
[Black "Prohorov, Olexandr"]
[WhiteFideId "1100920"]
[BlackFideId "14105578"]
[WhiteElo "2054"]
[BlackElo "1966"]
[Result "1-0"]
[Round "08"]
[TimeControl "180+2"]
[Date "2023.05.09"]
[WhiteClock "0:00:12"]
[BlackClock "0:00:23"]

1. e4 {[%clk 0:02:56]}  c5 {[%clk 0:02:57]} 2. Nf3 {[%clk 0:02:55]}  e6 {[%clk 0:02:53]} 3. d4 {[%clk 0:02:55]}  cxd4 {[%clk 0:02:53]} 4. Nxd4 {[%clk 0:02:56]}  Qb6 {[%clk 0:02:53]} 5. Nc3 {[%clk 0:02:53]}  Bc5 {[%clk 0:02:53]} 6. Na4 {[%clk 0:02:51]}  Qa5+ {[%clk 0:02:50]} 7. c3 {[%clk 0:02:51]}  Bxd4 {[%clk 0:02:51]} 8. b4 {[%clk 0:02:06]}  Bxf2+ {[%clk 0:02:45]} 9. Kxf2 {[%clk 0:02:06]}  Qc7 {[%clk 0:02:44]} 10. Bd3 {[%clk 0:01:52]}  Ne7 {[%clk 0:02:38]} 11. Be3 {[%clk 0:01:46]}  O-O {[%clk 0:02:37]} 12. Qh5 {[%clk 0:01:31]}  Ng6 {[%clk 0:02:33]} 13. Rhf1 {[%clk 0:01:05]}  Qe5 {[%clk 0:02:21]} 14. Qxe5 {[%clk 0:01:00]}  Nxe5 {[%clk 0:02:21]} 15. Be2 {[%clk 0:00:59]}  b6 {[%clk 0:02:19]} 16. Bf4 {[%clk 0:00:51]}  d6 {[%clk 0:02:19]} 17. Rfd1 {[%clk 0:00:45]}  f5 {[%clk 0:01:26]} 18. Rxd6 {[%clk 0:00:37]}  fxe4 {[%clk 0:01:23]} 19. Ke3 {[%clk 0:00:32]}  Ng6 {[%clk 0:01:19]} 20. Bg3 {[%clk 0:00:22]}  Bb7 {[%clk 0:01:08]} 21. Rad1 {[%clk 0:00:21]}  Nc6 {[%clk 0:01:03]} 22. Rd7 {[%clk 0:00:20]}  Bc8 {[%clk 0:01:01]} 23. Rc7 {[%clk 0:00:19]}  Nd8 {[%clk 0:00:57]} 24. Bc4 {[%clk 0:00:16]}  Kh8 {[%clk 0:00:51]} 25. Bb3 {[%clk 0:00:16]}  e5 {[%clk 0:00:42]} 26. Nb2 {[%clk 0:00:15]}  Nf4 {[%clk 0:00:37]} 27. Rd2 {[%clk 0:00:13]}  Bf5 {[%clk 0:00:31]} 28. Nc4 {[%clk 0:00:12]}  Nde6 {[%clk 0:00:27]} 29. Rb7 {[%clk 0:00:11]}  Rad8 {[%clk 0:00:23]} 30. Nxe5 {[%clk 0:00:10]}  Rxd2 {[%clk 0:00:20]} 31. Kxd2 {[%clk 0:00:11]}  e3+ {[%clk 0:00:19]} 32. Kxe3 {[%clk 0:00:09]}  h5 {[%clk 0:00:15]} 33. Bxf4 {[%clk 0:00:08]}  Nxf4 {[%clk 0:00:15]} 34. Nf7+ {[%clk 0:00:08]}  Kh7 {[%clk 0:00:14]} 35. Kxf4 {[%clk 0:00:08]}  Bg6 {[%clk 0:00:14]} 36. Kg5 {[%clk 0:00:07]}  h4 {[%clk 0:00:13]} 37. Kxh4 {[%clk 0:00:06]}  Rc8 {[%clk 0:00:10]} 38. c4 {[%clk 0:00:05]}  Re8 {[%clk 0:00:09]} 39. Ng5+ {[%clk 0:00:05]}  Kh6 {[%clk 0:00:09]} 40. Rxa7 {[%clk 0:00:06]}  Re5 {[%clk 0:00:09]} 41. Nf3 {[%clk 0:00:05]}  Re4+ {[%clk 0:00:09]} 42. Kg3 {[%clk 0:00:06]}  Bf5 {[%clk 0:00:08]} 43. h3 {[%clk 0:00:06]}  g5 {[%clk 0:00:09]} 44. Rb7 {[%clk 0:00:06]}  Re6 {[%clk 0:00:08]} 45. c5 {[%clk 0:00:06]}  Rf6 {[%clk 0:00:09]} 46. Rxb6 {[%clk 0:00:06]}  Kg7 {[%clk 0:00:08]} 47. Rxf6 {[%clk 0:00:05]}  Kxf6 {[%clk 0:00:09]} 48. c6 {[%clk 0:00:06]}  Be4 {[%clk 0:00:09]} 49. c7 {[%clk 0:00:06]}  Bb7 {[%clk 0:00:10]} 50. b5 {[%clk 0:00:06]}  Ke7 {[%clk 0:00:09]} 51. b6 {[%clk 0:00:06]}  Kd6 {[%clk 0:00:10]} 52. Bc2 {[%clk 0:00:06]}  Kc5 {[%clk 0:00:11]} 53. Bf5 {[%clk 0:00:06]}  Kxb6 {[%clk 0:00:12]} 54. c8=Q {[%clk 0:00:06]}  Bxc8 {[%clk 0:00:12]} 55. Bxc8 {[%clk 0:00:06]}  Kc5 {[%clk 0:00:13]} 56. Bg4 {[%clk 0:00:07]}  Kd6 {[%clk 0:00:14]} 57. Nxg5 {[%clk 0:00:08]}  Ke5 {[%clk 0:00:14]} 58. Nf3+ {[%clk 0:00:09]}  Kf6 {[%clk 0:00:15]} 59. h4 {[%clk 0:00:10]}  Kg6 {[%clk 0:00:15]} 60. h5+ {[%clk 0:00:11]}  Kh7 {[%clk 0:00:16]} 61. Kf4 {[%clk 0:00:11]}  Kg7 {[%clk 0:00:17]} 62. a4 {[%clk 0:00:11]}  Kh7 {[%clk 0:00:18]} 63. a5 {[%clk 0:00:12]}  Kg7 {[%clk 0:00:19]} 64. a6 {[%clk 0:00:13]}  Kh6 {[%clk 0:00:20]} 65. a7 {[%clk 0:00:13]}  Kg7 {[%clk 0:00:20]} 66. a8=Q {[%clk 0:00:13]}  Kh7 {[%clk 0:00:21]} 67. Qb7+ {[%clk 0:00:13]}  Kh8 {[%clk 0:00:21]} 68. Ng5 {[%clk 0:00:12]}  Kg8 {[%clk 0:00:22]} 69. Be6+ {[%clk 0:00:12]}  Kh8 {[%clk 0:00:23]} 70. Qh7# {[%clk 0:00:12]} 1-0


[Site "https://www.chess.com"]

[Event "Titled Tuesday Blitz May 9 Late 2023"]
[White "Gerbelli Neto, Eduardo"]
[Black "Almedina Ortiz, Edgardo J."]
[WhiteFideId "2103281"]
[BlackFideId "3100197"]
[WhiteElo "2178"]
[BlackElo "2217"]
[Result "1-0"]
[Round "08"]
[TimeControl "180+2"]
[Date "2023.05.09"]
[WhiteClock "0:00:32"]
[BlackClock "0:00:00"]

1. e4 {[%clk 0:03:00]}  c5 {[%clk 0:02:59]} 2. Nc3 {[%clk 0:03:00]}  Nc6 {[%clk 0:02:59]} 3. f4 {[%clk 0:03:01]}  g6 {[%clk 0:02:58]} 4. Nf3 {[%clk 0:03:02]}  Bg7 {[%clk 0:02:58]} 5. Bc4 {[%clk 0:03:02]}  e6 {[%clk 0:02:55]} 6. f5 {[%clk 0:03:02]}  gxf5 {[%clk 0:02:51]} 7. d3 {[%clk 0:03:02]}  Nge7 {[%clk 0:02:50]} 8. O-O {[%clk 0:03:02]}  O-O {[%clk 0:02:49]} 9. Bg5 {[%clk 0:02:48]}  f6 {[%clk 0:02:25]} 10. Be3 {[%clk 0:02:43]}  b6 {[%clk 0:02:13]} 11. Qe1 {[%clk 0:02:29]}  Kh8 {[%clk 0:02:12]} 12. Bb3 {[%clk 0:02:27]}  Na5 {[%clk 0:02:05]} 13. Nh4 {[%clk 0:02:17]}  fxe4 {[%clk 0:02:02]} 14. dxe4 {[%clk 0:02:06]}  c4 {[%clk 0:01:59]} 15. Ba4 {[%clk 0:02:03]}  a6 {[%clk 0:01:59]} 16. Ne2 {[%clk 0:01:43]}  b5 {[%clk 0:01:55]} 17. Qf2 {[%clk 0:01:35]}  Nac6 {[%clk 0:01:45]} 18. Bb6 {[%clk 0:01:24]}  Qe8 {[%clk 0:01:45]} 19. Nf4 {[%clk 0:01:07]}  Bb7 {[%clk 0:01:17]} 20. Bc5 {[%clk 0:01:05]}  Rg8 {[%clk 0:01:12]} 21. Qe2 {[%clk 0:00:43]}  Bh6 {[%clk 0:00:50]} 22. Nh5 {[%clk 0:00:40]}  Bg5 {[%clk 0:00:24]} 23. Nxf6 {[%clk 0:00:39]}  Qf7 {[%clk 0:00:12]} 24. Nxg8 {[%clk 0:00:37]}  Qxg8 {[%clk 0:00:13]} 25. Nf3 {[%clk 0:00:37]}  Bf6 {[%clk 0:00:12]} 26. e5 {[%clk 0:00:36]}  Bg7 {[%clk 0:00:09]} 27. Rad1 {[%clk 0:00:37]}  Rd8 {[%clk 0:00:04]} 28. Ng5 {[%clk 0:00:37]}  Nf5 {[%clk 0:00:00]} 29. Bb6 {[%clk 0:00:32]} 1-0


[Site "https://www.chess.com"]